[Event "Titled Tuesday Blitz June 28 Early 2022"]
[White "Orlov, Georgi"]
[Black "Skliarov, Viktor"]
[WhiteFideId "2011271"]
[BlackFideId "14106736"]
[WhiteElo "2533"]
[BlackElo "2229"]
[Result "1-0"]
[Round "05"]
[TimeControl "180+1"]
[Date "2022.06.28"]
[WhiteClock "0:00:24"]
[BlackClock "0:00:03"]

1. d4 {[%clk 0:03:00]}  Nf6 {[%clk 0:02:54]} 2. Nf3 {[%clk 0:02:59]}  g6 {[%clk 0:02:51]} 3. c4 {[%clk 0:02:57]}  Bg7 {[%clk 0:02:51]} 4. Nc3 {[%clk 0:02:57]}  O-O {[%clk 0:02:51]} 5. e4 {[%clk 0:02:56]}  d6 {[%clk 0:02:47]} 6. Be2 {[%clk 0:02:56]}  Bg4 {[%clk 0:02:46]} 7. Be3 {[%clk 0:02:54]}  Nc6 {[%clk 0:02:46]} 8. Rc1 {[%clk 0:02:53]}  Nd7 {[%clk 0:02:41]} 9. d5 {[%clk 0:02:51]}  Bxf3 {[%clk 0:02:35]} 10. gxf3 {[%clk 0:02:50]}  Nb4 {[%clk 0:02:26]} 11. a3 {[%clk 0:02:47]}  Na6 {[%clk 0:02:26]} 12. h4 {[%clk 0:02:44]}  h5 {[%clk 0:02:24]} 13. b4 {[%clk 0:02:41]}  c5 {[%clk 0:02:17]} 14. dxc6 {[%clk 0:02:38]}  bxc6 {[%clk 0:02:15]} 15. c5 {[%clk 0:02:37]}  Nc7 {[%clk 0:01:59]} 16. cxd6 {[%clk 0:02:37]}  exd6 {[%clk 0:01:59]} 17. Qxd6 {[%clk 0:02:36]}  Ne5 {[%clk 0:01:51]} 18. Qxd8 {[%clk 0:02:25]}  Rfxd8 {[%clk 0:01:50]} 19. O-O {[%clk 0:02:11]}  Nd3 {[%clk 0:01:16]} 20. Rc2 {[%clk 0:02:10]}  Ne6 {[%clk 0:01:15]} 21. Rd1 {[%clk 0:01:58]}  Ndf4 {[%clk 0:01:15]} 22. Bc4 {[%clk 0:01:27]}  Bf6 {[%clk 0:00:52]} 23. Bxe6 {[%clk 0:01:11]}  Nxe6 {[%clk 0:00:52]} 24. Rxd8+ {[%clk 0:01:06]}  Rxd8 {[%clk 0:00:51]} 25. Ne2 {[%clk 0:01:02]}  Rd3 {[%clk 0:00:43]} 26. a4 {[%clk 0:00:57]}  Rb3 {[%clk 0:00:37]} 27. Rxc6 {[%clk 0:00:54]}  Rxb4 {[%clk 0:00:36]} 28. Ra6 {[%clk 0:00:53]}  Bxh4 {[%clk 0:00:30]} 29. Rxa7 {[%clk 0:00:52]}  Bd8 {[%clk 0:00:23]} 30. a5 {[%clk 0:00:41]}  Rb1+ {[%clk 0:00:18]} 31. Kg2 {[%clk 0:00:41]}  Ra1 {[%clk 0:00:17]} 32. Bb6 {[%clk 0:00:35]}  Bxb6 {[%clk 0:00:11]} 33. axb6 {[%clk 0:00:35]}  Rxa7 {[%clk 0:00:12]} 34. bxa7 {[%clk 0:00:34]}  Nc7 {[%clk 0:00:13]} 35. Nd4 {[%clk 0:00:34]}  Kg7 {[%clk 0:00:12]} 36. e5 {[%clk 0:00:30]}  Na8 {[%clk 0:00:10]} 37. f4 {[%clk 0:00:28]}  Kf8 {[%clk 0:00:10]} 38. f5 {[%clk 0:00:26]}  Kg7 {[%clk 0:00:07]} 39. f6+ {[%clk 0:00:26]}  Kf8 {[%clk 0:00:06]} 40. f4 {[%clk 0:00:26]}  Ke8 {[%clk 0:00:06]} 41. Kh3 {[%clk 0:00:26]}  Kd7 {[%clk 0:00:06]} 42. Kh4 {[%clk 0:00:25]}  Kc7 {[%clk 0:00:05]} 43. e6 {[%clk 0:00:25]}  fxe6 {[%clk 0:00:02]} 44. f7 {[%clk 0:00:25]}  Kb7 {[%clk 0:00:02]} 45. f8=Q {[%clk 0:00:25]}  Kxa7 {[%clk 0:00:03]} 46. Nxe6 {[%clk 0:00:24]} 1-0


[Site "https://www.chess.com"]

[Event "Titled Tuesday Blitz June 28 Early 2022"]
[White "Piesik, Piotr"]
[Black "Jones, Gawain C B"]
[WhiteFideId "1136194"]
[BlackFideId "409561"]
[WhiteElo "2247"]
[BlackElo "2657"]
[Result "0-1"]
[Round "05"]
[TimeControl "180+1"]
[Date "2022.06.28"]
[WhiteClock "0:00:01"]
[BlackClock "0:00:03"]

1. Nf3 {[%clk 0:02:14]}  Nf6 {[%clk 0:02:58]} 2. g3 {[%clk 0:02:15]}  g6 {[%clk 0:02:59]} 3. Bg2 {[%clk 0:02:15]}  Bg7 {[%clk 0:02:59]} 4. O-O {[%clk 0:02:16]}  O-O {[%clk 0:03:00]} 5. d4 {[%clk 0:02:16]}  d5 {[%clk 0:03:00]} 6. c4 {[%clk 0:02:17]}  c6 {[%clk 0:03:00]} 7. Nc3 {[%clk 0:02:16]}  dxc4 {[%clk 0:02:59]} 8. a4 {[%clk 0:02:17]}  Bf5 {[%clk 0:02:58]} 9. e3 {[%clk 0:02:13]}  Ne4 {[%clk 0:02:55]} 10. a5 {[%clk 0:01:58]}  Na6 {[%clk 0:02:54]} 11. Qa4 {[%clk 0:01:58]}  Nxc3 {[%clk 0:02:52]} 12. bxc3 {[%clk 0:01:57]}  Bd3 {[%clk 0:02:50]} 13. Rd1 {[%clk 0:01:55]}  Nc7 {[%clk 0:02:47]} 14. Ne1 {[%clk 0:01:52]}  Nd5 {[%clk 0:02:42]} 15. Bb2 {[%clk 0:01:44]}  b5 {[%clk 0:02:40]} 16. axb6 {[%clk 0:01:42]}  Nxb6 {[%clk 0:02:29]} 17. Qxc6 {[%clk 0:01:38]}  Bf5 {[%clk 0:02:15]} 18. Qc5 {[%clk 0:01:36]}  Qd7 {[%clk 0:02:00]} 19. Bxa8 {[%clk 0:01:34]}  Rxa8 {[%clk 0:01:59]} 20. f3 {[%clk 0:01:22]}  h5 {[%clk 0:01:45]} 21. e4 {[%clk 0:01:21]}  Be6 {[%clk 0:01:44]} 22. Ng2 {[%clk 0:01:14]}  Rb8 {[%clk 0:01:39]} 23. Qa5 {[%clk 0:01:07]}  Rb7 {[%clk 0:01:31]} 24. Nf4 {[%clk 0:01:04]}  Bh6 {[%clk 0:01:30]} 25. Bc1 {[%clk 0:01:03]}  Kh7 {[%clk 0:01:23]} 26. Nxe6 {[%clk 0:01:02]}  Qxe6 {[%clk 0:01:22]} 27. Bxh6 {[%clk 0:01:01]}  Kxh6 {[%clk 0:01:23]} 28. h4 {[%clk 0:00:59]}  f6 {[%clk 0:01:11]} 29. Kg2 {[%clk 0:00:58]}  g5 {[%clk 0:00:29]} 30. hxg5+ {[%clk 0:00:58]}  fxg5 {[%clk 0:00:30]} 31. Qe5 {[%clk 0:00:55]}  Qxe5 {[%clk 0:00:28]} 32. dxe5 {[%clk 0:00:56]}  Nd7 {[%clk 0:00:27]} 33. f4 {[%clk 0:00:49]}  Nc5 {[%clk 0:00:25]} 34. Ra2 {[%clk 0:00:34]}  Nxe4 {[%clk 0:00:24]} 35. Rc2 {[%clk 0:00:33]}  Rb3 {[%clk 0:00:17]} 36. Rd4 {[%clk 0:00:33]}  Nxc3 {[%clk 0:00:17]} 37. Rxc4 {[%clk 0:00:33]}  Nd5 {[%clk 0:00:18]} 38. Kh2 {[%clk 0:00:19]}  Ne3 {[%clk 0:00:16]} 39. R4c3 {[%clk 0:00:19]}  Ng4+ {[%clk 0:00:14]} 40. Kh3 {[%clk 0:00:18]}  Rb1 {[%clk 0:00:14]} 41. fxg5+ {[%clk 0:00:17]}  Kxg5 {[%clk 0:00:14]} 42. Kg2 {[%clk 0:00:17]}  Re1 {[%clk 0:00:13]} 43. Ra2 {[%clk 0:00:12]}  Rxe5 {[%clk 0:00:11]} 44. Rxa7 {[%clk 0:00:10]}  Re2+ {[%clk 0:00:11]} 45. Kf3 {[%clk 0:00:11]}  Rf2+ {[%clk 0:00:11]} 46. Ke4 {[%clk 0:00:11]}  Nf6+ {[%clk 0:00:07]} 47. Kd4 {[%clk 0:00:10]}  Rd2+ {[%clk 0:00:05]} 48. Ke3 {[%clk 0:00:09]}  Rd1 {[%clk 0:00:04]} 49. Ra5+ {[%clk 0:00:09]}  Kg4 {[%clk 0:00:04]} 50. Rc4+ {[%clk 0:00:09]}  Kxg3 {[%clk 0:00:04]} 51. Rg5+ {[%clk 0:00:09]}  Ng4+ {[%clk 0:00:05]} 52. Ke2 {[%clk 0:00:07]}  Rh1 {[%clk 0:00:05]} 53. Re4 {[%clk 0:00:05]}  Rh2+ {[%clk 0:00:05]} 54. Kd3 {[%clk 0:00:03]}  Rh3 {[%clk 0:00:04]} 55. Ke2 {[%clk 0:00:01]}  Kh4 {[%clk 0:00:03]} 0-1


[Site "https://www.chess.com"]

[Event "Titled Tuesday Blitz June 28 Early 2022"]
[White "Piliczewski, Bogusz"]
[Black "Flynn, Jacob"]
[WhiteFideId "1104144"]
[BlackFideId "2509393"]
[WhiteElo "1896"]
[BlackElo "1896"]
[Result "0-1"]
[Round "05"]
[TimeControl "180+1"]
[Date "2022.06.28"]
[WhiteClock "0:00:01"]
[BlackClock "0:00:20"]

1. d4 {[%clk 0:02:57]}  Nf6 {[%clk 0:02:08]} 2. Nf3 {[%clk 0:02:51]}  g6 {[%clk 0:02:08]} 3. Bf4 {[%clk 0:02:51]}  Bg7 {[%clk 0:02:07]} 4. e3 {[%clk 0:02:51]}  O-O {[%clk 0:02:08]} 5. Be2 {[%clk 0:02:52]}  d5 {[%clk 0:02:08]} 6. h3 {[%clk 0:02:51]}  c5 {[%clk 0:02:08]} 7. c3 {[%clk 0:02:51]}  Nc6 {[%clk 0:02:06]} 8. O-O {[%clk 0:02:50]}  Nd7 {[%clk 0:02:06]} 9. Nbd2 {[%clk 0:02:46]}  e5 {[%clk 0:02:05]} 10. Bh2 {[%clk 0:02:41]}  exd4 {[%clk 0:01:46]} 11. exd4 {[%clk 0:02:34]}  cxd4 {[%clk 0:01:47]} 12. cxd4 {[%clk 0:02:21]}  Nxd4 {[%clk 0:01:48]} 13. Nxd4 {[%clk 0:02:13]}  Bxd4 {[%clk 0:01:48]} 14. Qb3 {[%clk 0:01:52]}  Nb6 {[%clk 0:01:48]} 15. Nf3 {[%clk 0:01:40]}  Bg7 {[%clk 0:01:46]} 16. Rfd1 {[%clk 0:01:38]}  Be6 {[%clk 0:01:46]} 17. Nd4 {[%clk 0:01:37]}  Qf6 {[%clk 0:01:37]} 18. Nxe6 {[%clk 0:01:30]}  fxe6 {[%clk 0:01:36]} 19. Bg3 {[%clk 0:01:20]}  Qxb2 {[%clk 0:01:36]} 20. Qxb2 {[%clk 0:01:19]}  Bxb2 {[%clk 0:01:35]} 21. Rab1 {[%clk 0:01:20]}  Bf6 {[%clk 0:01:33]} 22. Bg4 {[%clk 0:01:16]}  Kf7 {[%clk 0:01:30]} 23. Bc7 {[%clk 0:01:08]}  Bd8 {[%clk 0:01:20]} 24. Rdc1 {[%clk 0:01:00]}  Rc8 {[%clk 0:01:14]} 25. Bxd8 {[%clk 0:00:58]}  Rfxd8 {[%clk 0:01:13]} 26. Re1 {[%clk 0:00:54]}  Re8 {[%clk 0:01:13]} 27. a4 {[%clk 0:00:53]}  Rc7 {[%clk 0:01:08]} 28. a5 {[%clk 0:00:49]}  Nc4 {[%clk 0:01:08]} 29. a6 {[%clk 0:00:38]}  bxa6 {[%clk 0:01:07]} 30. Re2 {[%clk 0:00:35]}  a5 {[%clk 0:01:06]} 31. Rbe1 {[%clk 0:00:29]}  Rc6 {[%clk 0:01:02]} 32. Bf3 {[%clk 0:00:22]}  Rb6 {[%clk 0:01:00]} 33. Bxd5 {[%clk 0:00:21]}  Na3 {[%clk 0:00:43]} 34. Ba2 {[%clk 0:00:19]}  Nb5 {[%clk 0:00:43]} 35. Bc4 {[%clk 0:00:17]}  Nd4 {[%clk 0:00:42]} 36. Re4 {[%clk 0:00:16]}  Rd6 {[%clk 0:00:32]} 37. f4 {[%clk 0:00:14]}  Kf6 {[%clk 0:00:30]} 38. g4 {[%clk 0:00:14]}  Nf3+ {[%clk 0:00:30]} 39. Kg2 {[%clk 0:00:13]}  Nxe1+ {[%clk 0:00:31]} 40. Rxe1 {[%clk 0:00:12]}  Rc8 {[%clk 0:00:29]} 41. Re4 {[%clk 0:00:10]}  a4 {[%clk 0:00:27]} 42. g5+ {[%clk 0:00:05]}  Ke7 {[%clk 0:00:27]} 43. Kf3 {[%clk 0:00:05]}  a3 {[%clk 0:00:26]} 44. Ba2 {[%clk 0:00:03]}  Rc3+ {[%clk 0:00:26]} 45. Kg4 {[%clk 0:00:02]}  Rc2 {[%clk 0:00:19]} 46. Bb3 {[%clk 0:00:01]}  a2 {[%clk 0:00:20]} 47. Bxc2 {[%clk 0:00:01]}  a1=Q {[%clk 0:00:20]} 0-1


[Site "https://www.chess.com"]

[Event "Titled Tuesday Blitz June 28 Early 2022"]
[White "Plazuelo Pascual, Juan"]
[Black "Large, Peter G"]
[WhiteFideId "32059566"]
[BlackFideId "400866"]
[WhiteElo "2359"]
[BlackElo "2064"]
[Result "1-0"]
[Round "05"]
[TimeControl "180+1"]
[Date "2022.06.28"]
[WhiteClock "0:00:05"]
[BlackClock "0:00:03"]

1. e4 {[%clk 0:02:58]}  e5 {[%clk 0:02:59]} 2. Nf3 {[%clk 0:02:57]}  Nc6 {[%clk 0:02:59]} 3. Nc3 {[%clk 0:02:58]}  g6 {[%clk 0:02:58]} 4. Bb5 {[%clk 0:02:52]}  Bg7 {[%clk 0:02:57]} 5. O-O {[%clk 0:02:43]}  Nge7 {[%clk 0:02:56]} 6. Nd5 {[%clk 0:02:36]}  O-O {[%clk 0:02:53]} 7. d3 {[%clk 0:02:29]}  h6 {[%clk 0:02:49]} 8. a3 {[%clk 0:02:26]}  d6 {[%clk 0:02:48]} 9. Nxe7+ {[%clk 0:02:13]}  Nxe7 {[%clk 0:02:46]} 10. d4 {[%clk 0:02:13]}  Bg4 {[%clk 0:02:38]} 11. dxe5 {[%clk 0:01:56]}  dxe5 {[%clk 0:02:37]} 12. Be2 {[%clk 0:01:43]}  c6 {[%clk 0:02:36]} 13. c3 {[%clk 0:01:39]}  Qc7 {[%clk 0:02:33]} 14. Be3 {[%clk 0:01:23]}  Be6 {[%clk 0:02:18]} 15. Qc1 {[%clk 0:01:11]}  Kh7 {[%clk 0:02:17]} 16. Nd2 {[%clk 0:01:06]}  Rad8 {[%clk 0:01:48]} 17. Rd1 {[%clk 0:01:05]}  f5 {[%clk 0:01:38]} 18. f3 {[%clk 0:01:04]}  f4 {[%clk 0:01:33]} 19. Bc5 {[%clk 0:01:04]}  b6 {[%clk 0:01:26]} 20. Bf2 {[%clk 0:00:49]}  g5 {[%clk 0:01:26]} 21. Nc4 {[%clk 0:00:38]}  Rxd1+ {[%clk 0:01:19]} 22. Qxd1 {[%clk 0:00:38]}  Rd8 {[%clk 0:01:20]} 23. Qc2 {[%clk 0:00:38]}  b5 {[%clk 0:01:15]} 24. Nd2 {[%clk 0:00:38]}  Ng6 {[%clk 0:01:12]} 25. Nb3 {[%clk 0:00:37]}  Bf8 {[%clk 0:01:03]} 26. Nc5 {[%clk 0:00:37]}  Bc8 {[%clk 0:00:58]} 27. Rd1 {[%clk 0:00:36]}  Be7 {[%clk 0:00:54]} 28. b4 {[%clk 0:00:36]}  h5 {[%clk 0:00:52]} 29. a4 {[%clk 0:00:36]}  a6 {[%clk 0:00:50]} 30. Qb3 {[%clk 0:00:36]}  Bxc5 {[%clk 0:00:42]} 31. Bxc5 {[%clk 0:00:33]}  Kg7 {[%clk 0:00:35]} 32. a5 {[%clk 0:00:28]}  Rxd1+ {[%clk 0:00:31]} 33. Qxd1 {[%clk 0:00:27]}  Qd7 {[%clk 0:00:31]} 34. Bd6 {[%clk 0:00:17]}  g4 {[%clk 0:00:22]} 35. c4 {[%clk 0:00:17]}  gxf3 {[%clk 0:00:19]} 36. Bxf3 {[%clk 0:00:16]}  Kf6 {[%clk 0:00:18]} 37. c5 {[%clk 0:00:14]}  Nh4 {[%clk 0:00:17]} 38. Kf2 {[%clk 0:00:06]}  Qe6 {[%clk 0:00:16]} 39. Bxh5 {[%clk 0:00:05]}  Qa2+ {[%clk 0:00:10]} 40. Be2 {[%clk 0:00:05]}  Bg4 {[%clk 0:00:09]} 41. Bc7 {[%clk 0:00:05]}  Bxe2 {[%clk 0:00:06]} 42. Qxe2 {[%clk 0:00:06]}  Qb3 {[%clk 0:00:05]} 43. Bd8+ {[%clk 0:00:06]}  Ke6 {[%clk 0:00:05]} 44. Bxh4 {[%clk 0:00:07]}  Qxb4 {[%clk 0:00:04]} 45. Qg4+ {[%clk 0:00:07]}  Kf7 {[%clk 0:00:02]} 46. Qf5+ {[%clk 0:00:08]}  Ke8 {[%clk 0:00:02]} 47. Qe6+ {[%clk 0:00:07]}  Kf8 {[%clk 0:00:03]} 48. Qe7+ {[%clk 0:00:06]}  Kg8 {[%clk 0:00:03]} 49. Kf3 {[%clk 0:00:05]} 1-0


[Site "https://www.chess.com"]

[Event "Titled Tuesday Blitz June 28 Early 2022"]
[White "Prieto Aranguren, Alain"]
[Black "Manukian, Artak"]
[WhiteFideId "2268906"]
[BlackFideId "13301373"]
[WhiteElo "2224"]
[BlackElo "2456"]
[Result "0-1"]
[Round "05"]
[TimeControl "180+1"]
[Date "2022.06.28"]
[WhiteClock "0:00:22"]
[BlackClock "0:00:44"]

1. d4 {[%clk 0:02:54]}  Nf6 {[%clk 0:02:59]} 2. Bg5 {[%clk 0:02:35]}  c5 {[%clk 0:02:58]} 3. Nc3 {[%clk 0:02:33]}  cxd4 {[%clk 0:02:58]} 4. Qxd4 {[%clk 0:02:32]}  Nc6 {[%clk 0:02:58]} 5. Qh4 {[%clk 0:02:33]}  h6 {[%clk 0:02:51]} 6. e4 {[%clk 0:02:32]}  Qa5 {[%clk 0:02:49]} 7. Bd2 {[%clk 0:02:29]}  g5 {[%clk 0:02:37]} 8. Qg3 {[%clk 0:02:23]}  Qe5 {[%clk 0:02:36]} 9. Nf3 {[%clk 0:02:18]}  Qxg3 {[%clk 0:02:36]} 10. hxg3 {[%clk 0:02:18]}  Bg7 {[%clk 0:02:35]} 11. O-O-O {[%clk 0:02:10]}  Ng4 {[%clk 0:02:28]} 12. Nd5 {[%clk 0:02:08]}  Nxf2 {[%clk 0:02:15]} 13. Nc7+ {[%clk 0:01:54]}  Kd8 {[%clk 0:02:15]} 14. Nxa8 {[%clk 0:01:54]}  Nxh1 {[%clk 0:02:15]} 15. Be1 {[%clk 0:01:39]}  b6 {[%clk 0:02:02]} 16. Bc4 {[%clk 0:01:29]}  Bb7 {[%clk 0:02:00]} 17. Nxb6 {[%clk 0:01:29]}  axb6 {[%clk 0:01:59]} 18. Bxf7 {[%clk 0:01:29]}  Kc7 {[%clk 0:01:53]} 19. g4 {[%clk 0:01:26]}  d6 {[%clk 0:01:41]} 20. Bd5 {[%clk 0:01:25]}  Ne5 {[%clk 0:01:39]} 21. Kd2 {[%clk 0:01:20]}  Rf8 {[%clk 0:01:36]} 22. Nxe5 {[%clk 0:01:16]}  Bxe5 {[%clk 0:01:36]} 23. Ke2 {[%clk 0:01:16]}  Ng3+ {[%clk 0:01:32]} 24. Bxg3 {[%clk 0:01:00]}  Bxg3 {[%clk 0:01:32]} 25. Kd3 {[%clk 0:00:49]}  Rf2 {[%clk 0:01:26]} 26. Rh1 {[%clk 0:00:46]}  Bh4 {[%clk 0:01:21]} 27. g3 {[%clk 0:00:44]}  Rf3+ {[%clk 0:01:20]} 28. Kc4 {[%clk 0:00:44]}  Ba6+ {[%clk 0:01:14]} 29. Kb4 {[%clk 0:00:44]}  Rxg3 {[%clk 0:01:13]} 30. c4 {[%clk 0:00:43]}  Rxg4 {[%clk 0:01:10]} 31. Rf1 {[%clk 0:00:41]}  Rf4 {[%clk 0:01:09]} 32. Rg1 {[%clk 0:00:40]}  Bf2 {[%clk 0:01:04]} 33. Rh1 {[%clk 0:00:39]}  Rh4 {[%clk 0:00:56]} 34. Rf1 {[%clk 0:00:39]}  Bc5+ {[%clk 0:00:56]} 35. Ka4 {[%clk 0:00:40]}  Rf4 {[%clk 0:00:47]} 36. Rh1 {[%clk 0:00:39]}  Rf6 {[%clk 0:00:47]} 37. b4 {[%clk 0:00:38]}  Bd4 {[%clk 0:00:47]} 38. a3 {[%clk 0:00:24]}  g4 {[%clk 0:00:46]} 39. Rh5 {[%clk 0:00:22]}  g3 {[%clk 0:00:44]} 40. Rh1 {[%clk 0:00:22]}  g2 {[%clk 0:00:44]} 0-1


[Site "https://www.chess.com"]

[Event "Titled Tuesday Blitz June 28 Early 2022"]
[White "Rosen, Eric"]
[Black "Suleymanli, Suleyman"]
[WhiteFideId "2032562"]
[BlackFideId "13416375"]
[WhiteElo "2362"]
[BlackElo "1598"]
[Result "0-1"]
[Round "05"]
[TimeControl "180+1"]
[Date "2022.06.28"]
[WhiteClock "0:00:05"]
[BlackClock "0:00:33"]

1. d4 {[%clk 0:03:00]}  d5 {[%clk 0:02:59]} 2. Bf4 {[%clk 0:03:01]}  Nf6 {[%clk 0:02:57]} 3. e3 {[%clk 0:03:02]}  Bg4 {[%clk 0:02:57]} 4. Nf3 {[%clk 0:03:00]}  e6 {[%clk 0:02:56]} 5. Nbd2 {[%clk 0:02:59]}  Bd6 {[%clk 0:02:56]} 6. Bg3 {[%clk 0:03:00]}  Nbd7 {[%clk 0:02:55]} 7. c3 {[%clk 0:02:59]}  Qe7 {[%clk 0:02:55]} 8. Be2 {[%clk 0:02:59]}  h5 {[%clk 0:02:54]} 9. Ne5 {[%clk 0:02:42]}  Bxe2 {[%clk 0:02:52]} 10. Qxe2 {[%clk 0:02:43]}  Bxe5 {[%clk 0:02:45]} 11. dxe5 {[%clk 0:02:36]}  Ne4 {[%clk 0:02:44]} 12. f4 {[%clk 0:02:19]}  Ndc5 {[%clk 0:02:36]} 13. Nf3 {[%clk 0:02:05]}  h4 {[%clk 0:02:20]} 14. Bf2 {[%clk 0:02:00]}  h3 {[%clk 0:02:19]} 15. g4 {[%clk 0:01:53]}  Qd7 {[%clk 0:02:11]} 16. O-O-O {[%clk 0:01:46]}  Qa4 {[%clk 0:02:10]} 17. Kb1 {[%clk 0:01:46]}  b5 {[%clk 0:01:55]} 18. Rd4 {[%clk 0:01:44]}  Qa5 {[%clk 0:01:51]} 19. Rc1 {[%clk 0:01:39]}  a6 {[%clk 0:01:47]} 20. Be1 {[%clk 0:01:39]}  Qb6 {[%clk 0:01:43]} 21. Qf1 {[%clk 0:01:26]}  a5 {[%clk 0:01:39]} 22. Rcd1 {[%clk 0:01:14]}  a4 {[%clk 0:01:33]} 23. Rb4 {[%clk 0:01:10]}  c6 {[%clk 0:01:33]} 24. f5 {[%clk 0:01:02]}  a3 {[%clk 0:01:28]} 25. Nd4 {[%clk 0:00:52]}  axb2 {[%clk 0:01:24]} 26. Rxb2 {[%clk 0:00:53]}  Ra3 {[%clk 0:01:15]} 27. c4 {[%clk 0:00:46]}  Na4 {[%clk 0:01:03]} 28. cxb5 {[%clk 0:00:20]}  Nac3+ {[%clk 0:01:01]} 29. Bxc3 {[%clk 0:00:18]}  Nxc3+ {[%clk 0:01:02]} 30. Ka1 {[%clk 0:00:18]}  Nxd1 {[%clk 0:00:56]} 31. Qxd1 {[%clk 0:00:19]}  c5 {[%clk 0:00:55]} 32. Nc6 {[%clk 0:00:16]}  Rxe3 {[%clk 0:00:53]} 33. Qb1 {[%clk 0:00:11]}  Re4 {[%clk 0:00:46]} 34. fxe6 {[%clk 0:00:04]}  fxe6 {[%clk 0:00:47]} 35. Rf2 {[%clk 0:00:05]}  Rf8 {[%clk 0:00:33]} 0-1


[Site "https://www.chess.com"]

[Event "Titled Tuesday Blitz June 28 Early 2022"]
[White "Rosenberg, Evan S"]
[Black "Shohat, Yotam"]
[WhiteFideId "2019299"]
[BlackFideId "2813955"]
[WhiteElo "2169"]
[BlackElo "2119"]
[Result "0-1"]
[Round "05"]
[TimeControl "180+1"]
[Date "2022.06.28"]
[WhiteClock "0:00:19"]
[BlackClock "0:00:06"]

1. e4 {[%clk 0:03:00]}  c5 {[%clk 0:02:59]} 2. Nc3 {[%clk 0:03:01]}  d6 {[%clk 0:02:59]} 3. f4 {[%clk 0:02:57]}  Nf6 {[%clk 0:02:57]} 4. Nf3 {[%clk 0:02:56]}  a6 {[%clk 0:02:57]} 5. a4 {[%clk 0:02:55]}  Nc6 {[%clk 0:02:54]} 6. Bc4 {[%clk 0:02:51]}  e6 {[%clk 0:02:54]} 7. d3 {[%clk 0:02:50]}  d5 {[%clk 0:02:54]} 8. Ba2 {[%clk 0:02:44]}  dxe4 {[%clk 0:02:50]} 9. dxe4 {[%clk 0:02:41]}  Qxd1+ {[%clk 0:02:49]} 10. Kxd1 {[%clk 0:02:42]}  Bd7 {[%clk 0:02:31]} 11. e5 {[%clk 0:02:36]}  Ng4 {[%clk 0:02:29]} 12. Ke2 {[%clk 0:02:37]}  Nd4+ {[%clk 0:02:21]} 13. Nxd4 {[%clk 0:02:36]}  cxd4 {[%clk 0:02:22]} 14. Ne4 {[%clk 0:02:37]}  Bc6 {[%clk 0:02:22]} 15. Nd6+ {[%clk 0:02:17]}  Bxd6 {[%clk 0:02:21]} 16. exd6 {[%clk 0:02:18]}  O-O-O {[%clk 0:02:12]} 17. h3 {[%clk 0:02:12]}  Nf6 {[%clk 0:02:10]} 18. f5 {[%clk 0:02:04]}  exf5 {[%clk 0:02:04]} 19. Bf4 {[%clk 0:01:59]}  Rhe8+ {[%clk 0:02:03]} 20. Kd3 {[%clk 0:01:51]}  Re4 {[%clk 0:01:45]} 21. Rhf1 {[%clk 0:01:41]}  Bxa4 {[%clk 0:01:40]} 22. Bxf7 {[%clk 0:01:35]}  Bb5+ {[%clk 0:01:37]} 23. Bc4 {[%clk 0:01:35]}  Bxc4+ {[%clk 0:01:32]} 24. Kxc4 {[%clk 0:01:35]}  Kd7 {[%clk 0:01:31]} 25. Ra5 {[%clk 0:01:25]}  Rc8+ {[%clk 0:01:17]} 26. Kd3 {[%clk 0:01:24]}  g6 {[%clk 0:01:15]} 27. g4 {[%clk 0:01:14]}  Ke6 {[%clk 0:00:54]} 28. gxf5+ {[%clk 0:01:12]}  gxf5 {[%clk 0:00:54]} 29. h4 {[%clk 0:01:01]}  Nd5 {[%clk 0:00:53]} 30. Rxd5 {[%clk 0:00:34]}  Kxd5 {[%clk 0:00:53]} 31. d7 {[%clk 0:00:33]}  Rd8 {[%clk 0:00:50]} 32. Bg5 {[%clk 0:00:33]}  Rxd7 {[%clk 0:00:50]} 33. Rxf5+ {[%clk 0:00:34]}  Re5 {[%clk 0:00:51]} 34. Rf4 {[%clk 0:00:30]}  Re3+ {[%clk 0:00:39]} 35. Kd2 {[%clk 0:00:29]}  Ke5 {[%clk 0:00:30]} 36. Rf8 {[%clk 0:00:21]}  Rh3 {[%clk 0:00:29]} 37. Bf6+ {[%clk 0:00:16]}  Ke4 {[%clk 0:00:26]} 38. Re8+ {[%clk 0:00:15]}  Kf5 {[%clk 0:00:22]} 39. Bg5 {[%clk 0:00:14]}  d3 {[%clk 0:00:19]} 40. cxd3 {[%clk 0:00:13]}  Rhxd3+ {[%clk 0:00:17]} 41. Kc2 {[%clk 0:00:13]}  R3d5 {[%clk 0:00:16]} 42. Rf8+ {[%clk 0:00:13]}  Kg4 {[%clk 0:00:15]} 43. Rf4+ {[%clk 0:00:13]}  Kg3 {[%clk 0:00:15]} 44. Rf6 {[%clk 0:00:13]}  Rd4 {[%clk 0:00:13]} 45. Rb6 {[%clk 0:00:11]}  Rc4+ {[%clk 0:00:13]} 46. Kb3 {[%clk 0:00:10]}  Rc6 {[%clk 0:00:13]} 47. Rb4 {[%clk 0:00:10]}  Rd3+ {[%clk 0:00:14]} 48. Ka2 {[%clk 0:00:10]}  b5 {[%clk 0:00:13]} 49. Re4 {[%clk 0:00:09]}  Rc4 {[%clk 0:00:12]} 50. Re7 {[%clk 0:00:09]}  h5 {[%clk 0:00:09]} 51. Rg7 {[%clk 0:00:09]}  Rxh4 {[%clk 0:00:08]} 52. Bxh4+ {[%clk 0:00:07]}  Kxh4 {[%clk 0:00:09]} 53. Rg6 {[%clk 0:00:07]}  Rg3 {[%clk 0:00:06]} 54. Rxa6 {[%clk 0:00:07]}  Kh3 {[%clk 0:00:06]} 55. Rh6 {[%clk 0:00:06]}  Rg5 {[%clk 0:00:06]} 56. Kb3 {[%clk 0:00:06]}  Kg4 {[%clk 0:00:06]} 57. Kb4 {[%clk 0:00:06]}  h4 {[%clk 0:00:07]} 58. Ka5 {[%clk 0:00:06]}  Kg3 {[%clk 0:00:06]} 59. Rd6 {[%clk 0:00:06]}  h3 {[%clk 0:00:04]} 60. Rd1 {[%clk 0:00:07]}  h2 {[%clk 0:00:03]} 61. Rh1 {[%clk 0:00:06]}  Kg2 {[%clk 0:00:04]} 62. Rxh2+ {[%clk 0:00:06]}  Kxh2 {[%clk 0:00:05]} 63. b4 {[%clk 0:00:06]}  Kg3 {[%clk 0:00:05]} 64. Kb6 {[%clk 0:00:06]}  Kf4 {[%clk 0:00:05]} 65. Ka5 {[%clk 0:00:07]}  Ke4 {[%clk 0:00:06]} 66. Kb6 {[%clk 0:00:08]}  Kd4 {[%clk 0:00:06]} 67. Ka5 {[%clk 0:00:09]}  Kc4 {[%clk 0:00:06]} 68. Ka6 {[%clk 0:00:08]}  Kxb4 {[%clk 0:00:07]} 69. Kb6 {[%clk 0:00:09]}  Rg6+ {[%clk 0:00:05]} 70. Kc7 {[%clk 0:00:09]}  Kc5 {[%clk 0:00:06]} 71. Kd7 {[%clk 0:00:10]}  Kd5 {[%clk 0:00:06]} 72. Ke7 {[%clk 0:00:11]}  Ke5 {[%clk 0:00:06]} 73. Kf7 {[%clk 0:00:12]}  Kf5 {[%clk 0:00:06]} 74. Ke7 {[%clk 0:00:12]}  Rf6 {[%clk 0:00:06]} 75. Kd7 {[%clk 0:00:13]}  Ke5 {[%clk 0:00:07]} 76. Ke7 {[%clk 0:00:14]}  Rh6 {[%clk 0:00:04]} 77. Kd7 {[%clk 0:00:15]}  b4 {[%clk 0:00:04]} 78. Ke7 {[%clk 0:00:16]}  b3 {[%clk 0:00:04]} 79. Kf7 {[%clk 0:00:16]}  b2 {[%clk 0:00:05]} 80. Kg7 {[%clk 0:00:17]}  Re6 {[%clk 0:00:05]} 81. Kf7 {[%clk 0:00:17]}  b1=Q {[%clk 0:00:05]} 82. Kg7 {[%clk 0:00:18]}  Qb7+ {[%clk 0:00:05]} 83. Kf8 {[%clk 0:00:18]}  Ra6 {[%clk 0:00:05]} 84. Ke8 {[%clk 0:00:19]}  Ra8# {[%clk 0:00:06]} 0-1


[Site "https://www.chess.com"]